bitfinex/quotes_ETHUSD_20240730
["timestamp","ask_amount","ask_price","bid_price","bid_amount"]
[1722335364152,0.989,3341.6,3341.0,2.4805]
[1722335364350,2.99288,3341.3,3340.8,2.99329]
[1722335365143,2.99288,3341.3,3340.9,2.9932]
[1722335365551,2.99277,3341.4,3340.9,2.9932]
[1722335365708,0.45091787,3341.3,3341.0,2.4154]
[1722335365910,2.99277,3341.4,3341.0,5.40846]
[1722335366138,2.99268,3341.5,3341.0,5.4085]
[1722335366356,0.4509294,3341.4,3341.0,5.4085]
[1722335366633,0.4509294,3341.3,3341.0,5.4085]
[1722335366827,2.99268,3341.5,3341.0,5.4085]
[1722335367089,0.45091666,3341.4,3341.0,5.4085]
[1722335367234,0.45091666,3341.3,3341.0,5.4085]
[1722335367427,2.99268,3341.5,3341.0,5.4085]
[1722335367632,0.45091786,3341.4,3341.0,5.4085]
[1722335367834,0.45091786,3341.3,3341.0,5.4085]
[1722335368065,2.99268,3341.5,3341.1,2.99301]
[1722335368250,0.45095883,3341.4,3341.1,2.99297]
[1722335368455,2.9924,3341.8,3341.3,2.99281]
[1722335368695,0.45088376,3341.7,3341.4,2.2897]
[1722335368831,0.45088376,3341.6,3341.4,2.2897]
[1722335369032,0.55,3341.8,3341.4,5.28239]
[1722335369233,0.45098232,3341.7,3341.4,5.28239]
[1722335369451,3.54244,3341.8,3341.4,2.2897]
[1722335369678,0.45093707,3341.7,3341.4,2.2897]
[1722335370010,3.54244,3341.8,3341.6,0.33096772]
[1722335370131,0.45098956,3341.7,3341.6,1.31996772]
[1722335370331,5.36655586,3341.9,3341.6,0.33096772]
[1722335370577,8.35886586,3341.9,3341.6,0.33096772]
[1722335370759,5.36655586,3341.9,3341.7,0.07154935]
[1722335371076,0.4508702,3341.8,3341.6,0.33096772]
[1722335371278,2.99222,3342.0,3341.6,0.33096772]
[1722335371430,0.40404141,3341.9,3341.7,0.07154935]
[1722335371627,2.99222,3342.0,3341.7,0.07154935]
[1722335371875,0.40400182,3341.9,3341.7,0.07154935]
[1722335372080,2.99213,3342.1,3341.7,0.07154935]
[1722335372231,0.95403169,3342.0,3341.7,3.06401935]
[1722335372431,0.40403169,3341.9,3341.7,3.06401935]
[1722335372629,5.36655586,3342.4,3341.8,5.42164]
[1722335372866,3.39597274,3342.3,3341.8,5.42164]
[1722335373043,0.40400274,3342.2,3341.9,0.07154935]
[1722335373257,2.99197,3342.3,3341.9,0.07154935]
[1722335373258,0.40400274,3342.1,3341.9,0.07154935]
[1722335373457,5.36655586,3342.4,3341.9,0.07154935]
[1722335373632,3.89913483,3342.3,3341.9,0.07154935]
[1722335373854,0.35717483,3342.2,3341.9,0.07154935]
[1722335374781,3.34921483,3342.2,3341.9,0.07154935]
[1722335374961,0.35717483,3342.1,3341.9,0.07154935]
[1722335375299,3.34931483,3342.1,3341.6,5.62030772]
[1722335375513,2.99214,3342.1,3342.0,0.40251707]
[1722335375801,2.99214,3342.1,3341.6,5.28934]
[1722335375802,0.35719837,3342.1,3341.6,5.28934]
[1722335375963,2.99204,3342.2,3342.0,0.07154935]
[1722335376305,0.3571636,3342.1,3341.7,2.99243]
[1722335376456,2.99204,3342.2,3341.7,2.99243]
[1722335376654,0.3572069,3342.1,3341.7,2.99243]
[1722335376904,2.99204,3342.2,3341.7,2.99243]
[1722335377112,0.35721623,3342.1,3341.7,2.99243]
[1722335377407,2.99204,3342.2,3341.7,2.99243]
[1722335377707,3.34936216,3342.1,3341.6,5.28934]
[1722335377901,0.35723999,3342.0,3341.6,8.28186]
[1722335378074,2.99204,3342.2,3341.7,2.99248]
[1722335378278,0.3572163,3342.1,3341.7,2.99248]
[1722335378485,2.99204,3342.2,3341.7,2.99248]
[1722335378693,0.35722066,3342.1,3341.7,2.99248]
[1722335378892,0.35722066,3342.1,3341.6,5.28932]
[1722335378893,3.54197,3342.3,3341.8,2.99238]
[1722335379099,0.3572442,3342.2,3341.9,2.99229]
[1722335379296,0.55,3342.3,3342.0,2.2865]
[1722335379465,8.35841586,3342.4,3342.0,5.27871]
[1722335379663,0.35726796,3342.3,3342.0,5.27871]
[1722335379989,8.35841586,3342.4,3342.1,0.33094233]
[1722335381524,5.36655586,3342.4,3342.1,0.33094233]
[1722335381697,2.99181,3342.5,3342.1,0.33094233]
[1722335381868,0.55,3342.4,3342.1,0.33094233]
[1722335382802,0.55,3342.5,3342.2,2.99203]
[1722335383115,8.98327,3342.7,3342.2,2.99203]
[1722335383116,0.55,3342.6,3342.2,2.99203]
[1722335383414,0.55,3342.6,3342.3,2.99194]
[1722335384189,0.55,3342.6,3342.1,3.32298233]
[1722335384915,3.54169,3342.6,3342.1,3.32306233]
[1722335385613,2.99177,3342.5,3342.1,3.32306233]
[1722335385818,2.99177,3342.5,3342.2,0.07084198]
[1722335386675,0.55,3342.6,3342.2,3.06287198]
[1722335386676,3.54168,3342.6,3342.2,3.06287198]
[1722335386892,0.55,3342.6,3342.2,3.06287198]
[1722335387095,2.9916,3342.7,3342.2,3.06287198]
[1722335387506,5.98326,3342.7,3342.2,3.06287198]
[1722335387690,2.99169,3342.6,3342.2,3.06287198]
[1722335387902,9.34703586,3342.9,3342.3,2.99194]
[1722335388094,3.54155,3342.8,3342.4,2.4801]
[1722335388616,3.54155,3342.8,3342.5,0.07038461]
[1722335389015,2.99142,3342.9,3342.5,0.07038461]
[1722335389631,2.99142,3342.9,3342.4,2.4801]
[1722335389993,2.99142,3342.9,3342.4,5.4719]
[1722335390433,2.99142,3342.9,3342.5,0.07038461]
[1722335393234,2.9916,3342.7,3342.5,0.07038461]
[1722335394363,2.99151,3342.8,3342.5,0.07038461]
[1722335395026,2.99142,3342.9,3342.5,0.07038461]
[1722335396320,2.9912,3343.2,3342.7,2.99157]
[1722335396958,2.9912,3343.2,3342.8,0.07038461]
[1722335397224,2.9912,3343.2,3342.7,2.99157]
[1722335397570,2.9912,3343.2,3342.8,0.07038461]
[1722335398080,8.35760586,3343.3,3342.9,0.07019411]
[1722335398217,2.4708,3343.7,3343.0,2.4304]
[1722335398420,2.99091,3343.5,3343.0,5.42169]
[1722335398714,2.99091,3343.5,3343.1,0.07019411]
[1722335399640,2.99083,3343.6,3343.1,0.07019411]
[1722335399641,2.99098,3343.4,3343.1,0.07019411]
[1722335399843,2.99107,3343.3,3343.1,0.07019411]
[1722335400037,2.99114,3343.2,3343.1,0.07019411]
[1722335400539,2.99106,3343.3,3343.1,0.07019411]
[1722335400924,5.98228,3343.2,3343.1,0.07019411]
[1722335401993,6.978497,3343.2,3343.1,0.07019411]
[1722335402272,12.946637,3343.2,3343.1,0.07019411]
[1722335404820,16.29521759,3343.2,3343.1,0.07019411]
[1722335405713,16.29521759,3343.2,3343.1,0.40113644]
[1722335405922,16.29521759,3343.2,3343.1,0.07019411]
[1722335406228,19.29521759,3343.2,3343.1,0.07019411]
[1722335406721,16.30407759,3343.2,3343.1,0.07019411]
[1722335407028,17.29307759,3343.2,3343.1,0.07019411]
[1722335407626,11.517497,3343.2,3343.1,0.07019411]
[1722335408223,11.87473555,3343.2,3343.1,0.07019411]
[1722335408428,11.517497,3343.2,3343.1,0.07019411]
[1722335408918,11.87475467,3343.2,3343.1,0.07019411]
[1722335409113,11.517497,3343.2,3343.1,0.07019411]
[1722335409550,14.86589989,3343.2,3343.1,0.07019411]
[1722335409917,17.32619989,3343.2,3343.1,0.07019411]
[1722335411028,14.33505989,3343.2,3343.1,0.07019411]
[1722335411436,11.87475989,3343.2,3343.1,0.07019411]
[1722335412362,10.88575989,3343.2,3343.1,0.07019411]
[1722335413373,6.88954289,3343.2,3343.1,0.07019411]
[1722335414362,3.89840289,3343.2,3343.1,0.07019411]
[1722335415269,6.88954289,3343.2,3343.1,0.07019411]
[1722335416427,7.52128,3343.2,3343.1,0.07019411]
[1722335416869,6.53228,3343.2,3343.1,0.07019411]
[1722335417051,3.54114,3343.2,3343.1,0.07019411]
[1722335417236,0.55,3343.2,3343.1,0.07019411]
[1722335417440,3.30423491,3343.3,3343.2,2.2956]
[1722335417441,0.31316491,3343.3,3343.2,2.2956]
[1722335417849,0.31316491,3343.3,3343.2,2.687284]
[1722335420457,0.31316491,3343.3,3343.2,5.678424]
[1722335421537,5.36655586,3343.8,3343.4,2.99094]
[1722335421734,5.36655586,3343.8,3343.4,2.9909]
[1722335421991,5.36655586,3343.8,3343.3,3.39261533]
[1722335421992,5.36655586,3343.8,3343.5,4.04032634]
[1722335422136,5.36655586,3343.8,3343.5,1.04949634]
[1722335422463,8.35720586,3343.8,3343.5,0.06049634]
[1722335422705,8.35720586,3343.8,3343.3,5.33485]
[1722335422706,2.99089,3343.5,3343.3,2.3438]
[1722335423211,5.36655586,3343.8,3343.3,2.3438]
[1722335423421,2.99079,3343.6,3343.3,2.3438]
[1722335423778,2.9907,3343.7,3343.3,5.33484]
[1722335423992,8.35718586,3343.8,3343.4,2.99094]
[1722335424786,5.36655586,3343.8,3343.4,2.99094]
[1722335425634,5.36655586,3343.8,3343.3,2.3438]
[1722335425635,2.99071,3343.7,3343.3,2.3438]
[1722335426131,5.36655586,3343.8,3343.3,5.33479]
[1722335426334,2.99061,3343.8,3343.3,5.33479]
[1722335426695,2.99061,3343.8,3343.4,2.99095]
[1722335427294,2.99061,3343.8,3343.3,2.3438]
[1722335427295,2.99061,3343.8,3343.3,5.33481]
[1722335427905,2.99061,3343.8,3343.4,2.99093]
[1722335428535,2.99049,3344.0,3343.4,2.99093]
[1722335428707,0.55,3343.9,3343.4,2.99093]
[1722335429910,3.54053,3343.9,3343.4,2.99093]
[1722335430108,3.54053,3343.9,3343.5,2.4514]
[1722335431007,3.54053,3343.9,3343.5,5.44227]
[1722335432525,3.54053,3343.9,3343.5,2.4514]
[1722335434259,0.55,3343.9,3343.5,2.51121254]
[1722335434433,3.0570264,3344.1,3343.7,2.99068]
[1722335434434,0.0666364,3344.1,3343.7,2.99068]
[1722335434634,0.0666364,3344.1,3343.8,5.273]
[1722335434959,0.0666364,3344.1,3343.8,2.34220908]
[1722335435256,0.0666364,3344.1,3344.0,2.99043]
[1722335435621,0.0666364,3344.1,3344.0,3.3213937]
[1722335435825,0.0666364,3344.1,3344.0,3.0503223]
[1722335437030,0.0666364,3344.1,3344.0,8.3551523]
[1722335437543,0.0666364,3344.1,3344.0,11.3455823]
[1722335438624,0.0666364,3344.1,3344.0,13.7155823]
[1722335438917,0.0666364,3344.1,3344.0,16.7155823]
[1722335440854,0.0666364,3344.1,3344.0,51.7155823]
[1722335444338,0.0666364,3344.1,3344.0,54.7060123]
[1722335444541,0.0666364,3344.1,3344.0,55.0062123]
[1722335446169,0.0666364,3344.1,3344.0,57.9966423]
[1722335446877,0.00095044,3344.1,3344.0,57.9966423]
[1722335449469,0.00095044,3344.1,3344.0,55.0062123]
[1722335451833,2.98891,3345.7,3345.2,2.98927]
[1722335452103,2.98891,3345.7,3345.0,2.4071]
[1722335452104,2.98901,3345.6,3345.1,2.98944]
[1722335452290,2.98901,3345.6,3345.3,0.05891295]
[1722335452487,2.98891,3345.7,3345.2,2.9893]
[1722335452705,2.98891,3345.7,3345.4,0.05891295]
[1722335453005,2.98886,3345.8,3345.5,0.05891295]
[1722335453205,2.98886,3345.8,3345.0,2.4071]
[1722335453206,2.98886,3345.8,3345.3,2.98926]
[1722335453506,2.98886,3345.8,3345.4,0.05891295]
[1722335454735,2.98886,3345.8,3345.7,0.33097109]
[1722335454882,2.98886,3345.8,3345.3,2.98926]
[1722335455233,2.98886,3345.8,3345.7,0.05891295]
[1722335456081,2.98892,3345.7,3345.2,2.98935]
[1722335456280,2.3019,3345.9,3345.7,0.05891295]
[1722335456281,5.97768,3345.8,3345.7,0.05891295]
[1722335456527,5.97772,3345.8,3345.2,5.97861]
[1722335456688,2.98884,3345.8,3345.7,0.05891295]
[1722335456870,5.97772,3345.8,3345.3,2.98926]
[1722335457071,2.98884,3345.8,3345.7,0.05891295]
[1722335457308,2.98884,3345.8,3345.3,2.98926]
[1722335457512,2.98884,3345.8,3345.7,0.05891295]
[1722335457712,2.98884,3345.8,3345.3,2.98926]
[1722335457911,5.97772,3345.8,3345.3,2.98926]
[1722335458214,2.98884,3345.8,3345.4,0.05891295]
[1722335458974,5.29064,3345.9,3345.4,3.04806295]
[1722335460089,2.3019,3345.9,3345.5,2.98904]
[1722335460529,2.3019,3345.9,3345.6,0.05845298]
[1722335460749,5.29063,3345.9,3345.6,0.05845298]
[1722335460930,2.98891,3345.7,3345.2,2.98927]
[1722335461657,2.98891,3345.7,3345.0,2.98947]
[1722335461658,2.98913,3345.5,3345.0,2.98947]
[1722335461832,2.4512,3345.4,3345.0,2.98947]
[1722335462212,2.4512,3345.4,3345.0,5.97894]
[1722335462438,2.98913,3345.5,3345.1,2.98943]
[1722335462758,5.46644,3345.6,3345.1,2.98939]
[1722335464154,5.46644,3345.6,3345.1,5.97877]
[1722335464360,5.36298,3345.8,3345.1,2.98938]
[1722335464560,5.36298,3345.8,3345.3,2.98926]
[1722335464890,5.3756,3346.0,3345.4,2.98913]
[1722335465059,2.98877,3345.9,3345.4,3.04751969]
[1722335465472,2.3869,3346.0,3345.6,2.98899]
[1722335465698,8.36655586,3346.4,3345.6,2.98895]
[1722335465699,2.9885,3346.2,3345.6,2.98895]
[1722335465847,2.9885,3346.2,3345.7,3.04722969]
[1722335466050,2.3897,3346.3,3345.7,3.04722969]
[1722335466051,2.3897,3346.3,3345.9,2.98868]
[1722335466888,5.37812,3346.3,3346.0,0.38924515]
[1722335467651,2.3897,3346.3,3346.0,0.38924515]
[1722335469088,2.9882,3346.5,3346.0,3.37783515]
[1722335469297,2.9882,3346.5,3346.0,3.37787515]
[1722335470063,2.9882,3346.5,3346.1,2.98853]
[1722335470288,5.43621,3346.6,3346.1,2.9885]
[1722335470472,2.9878,3347.0,3346.2,2.43626473]
[1722335470678,2.9878,3347.0,3346.5,2.98818]
[1722335470679,2.98779,3347.0,3346.5,2.98818]
[1722335471006,2.98779,3347.0,3346.3,2.98832]
[1722335471297,2.98779,3347.0,3346.5,2.98814]
[1722335471501,2.3905,3347.1,3346.6,2.98808]
[1722335471502,2.98766,3347.1,3346.6,2.98808]
[1722335471925,2.98766,3347.1,3346.5,2.98812]
[1722335472073,2.98766,3347.1,3346.7,0.05805228]
[1722335472275,2.98776,3347.0,3346.6,2.98808]
[1722335472471,2.98776,3347.0,3346.8,0.05805228]
[1722335472699,0.375,3347.2,3346.3,2.98837]
[1722335472908,2.98806,3346.7,3346.0,3.31948546]
[1722335473205,2.98833,3346.4,3346.0,0.33085546]
[1722335473507,2.98824,3346.5,3346.0,0.33085546]
[1722335473508,2.98827,3346.5,3346.0,0.33085546]
[1722335473719,2.98825,3346.5,3346.0,0.33085546]
[1722335473922,2.98816,3346.6,3346.1,2.98854]
[1722335474207,2.98822,3346.5,3346.0,3.31948546]
[1722335474906,2.98808,3346.7,3346.2,2.98842]
[1722335475423,2.98788,3346.9,3346.4,2.9882]
[1722335475583,2.98788,3346.9,3346.5,2.98819]
[1722335475783,2.98788,3346.9,3346.4,2.98826]
[1722335475985,2.98788,3346.9,3346.5,3.047948]
[1722335476199,2.98788,3346.9,3346.5,2.98819]
[1722335476405,2.9877,3347.1,3346.6,2.98809]
[1722335477321,3.36259,3347.2,3346.4,2.3395]
[1722335477609,2.98766,3347.1,3346.7,2.988]
[1722335477821,2.9878,3347.0,3346.5,2.98813]
[1722335478188,2.98766,3347.1,3346.5,2.98813]
[1722335478387,2.98766,3347.1,3346.6,2.98806]
[1722335478590,3.36257,3347.2,3346.8,2.98792]
[1722335478893,0.375,3347.2,3346.8,2.98792]
[1722335479346,0.375,3347.2,3346.9,2.98779]
[1722335480115,0.375,3347.2,3347.0,0.05727641]
[1722335480866,0.375,3347.2,3347.1,2.98766]
[1722335481020,0.375,3347.2,3347.0,3.04501641]
[1722335481223,0.375,3347.2,3347.1,3.04491534]
[1722335482471,0.375,3347.2,3347.1,6.03257534]
[1722335482626,0.375,3347.2,3347.1,6.09231885]
[1722335483223,0.375,3347.2,3347.1,8.50361885]
[1722335483421,0.375,3347.2,3347.1,5.45621534]
[1722335483664,0.375,3347.2,3347.1,3.04491534]
[1722335484163,0.375,3347.2,3347.1,8.43437534]
[1722335484363,0.375,3347.2,3347.1,11.42203534]
[1722335484767,0.375,3347.2,3347.1,14.42203534]
[1722335484923,0.375,3347.2,3347.1,17.40969534]
[1722335485263,0.375,3347.2,3347.1,14.42203534]
[1722335485836,0.375,3347.2,3347.1,17.40969534]
[1722335486569,0.375,3347.2,3347.1,14.42203534]
[1722335488064,0.375,3347.2,3347.1,11.43437534]
[1722335488873,0.375,3347.2,3347.1,6.04491534]
[1722335489173,0.1471041,3347.4,3347.1,6.04491534]
[1722335489349,0.1471041,3347.4,3347.2,5.98752]
[1722335489554,0.1471041,3347.4,3347.3,2.98748]
[1722335489726,0.1471041,3347.4,3347.3,5.98748]
[1722335489931,0.1471041,3347.4,3347.3,3.05478465]
[1722335491044,0.1471041,3347.4,3347.3,9.02974465]
[1722335493230,0.1471041,3347.4,3347.3,12.01722465]
[1722335493672,0.1471041,3347.4,3347.3,9.02974465]
[1722335494378,0.1471041,3347.4,3347.3,12.01722465]
[1722335494583,0.1471041,3347.4,3347.3,14.36852465]
[1722335495580,0.1471041,3347.4,3347.3,14.69938011]
[1722335495878,0.1471041,3347.4,3347.3,14.36852465]
[1722335496097,0.1309041,3347.4,3347.3,11.38104465]
[1722335497052,0.1309041,3347.4,3347.3,46.38104465]
[1722335497253,0.1309041,3347.4,3347.3,44.02974465]
[1722335499097,3.1182941,3347.4,3347.3,0.05478465]
[1722335499440,3.1182941,3347.4,3346.5,2.3513]
[1722335499441,0.1309041,3347.4,3346.5,2.3513]
[1722335499743,0.1309041,3347.4,3347.3,2.98748]
[1722335500345,0.1309041,3347.4,3347.3,3.03990536]
[1722335500881,0.1309041,3347.4,3347.3,0.05242536]
[1722335501579,0.1309041,3347.4,3347.1,2.98765]
[1722335501781,0.1309041,3347.4,3347.3,0.05242536]
[1722335501989,0.1309041,3347.4,3347.1,2.98759]
[1722335502283,0.1309041,3347.4,3347.3,0.05242536]
[1722335502874,0.1309041,3347.4,3347.3,2.98748]
[1722335503081,0.1309041,3347.4,3347.3,3.04722329]
[1722335503383,0.1309041,3347.4,3347.3,0.05242536]
[1722335503591,0.1309041,3347.4,3347.2,2.98751]
[1722335503963,0.1309041,3347.4,3347.3,0.05242536]
[1722335504365,0.1309041,3347.4,3347.1,2.98765]
[1722335504563,0.1309041,3347.4,3346.6,37.37]
[1722335504564,0.1309041,3347.4,3347.3,0.05242536]
[1722335504761,0.1309041,3347.4,3347.0,2.98773]
[1722335504992,0.1309041,3347.4,3347.3,0.05242536]
[1722335505187,6.1056841,3347.4,3347.3,0.05242536]
[1722335505418,6.1056841,3347.4,3346.7,3.0]
[1722335505419,0.1309041,3347.4,3346.7,3.0]
[1722335505576,0.1309041,3347.4,3347.3,0.05242536]
[1722335506112,0.1309041,3347.4,3347.1,2.98765]
[1722335506465,0.1309041,3347.4,3347.0,2.98774]
[1722335506835,0.1309041,3347.4,3347.2,2.9875]
[1722335507400,3.1182941,3347.4,3347.1,0.05242536]
[1722335507613,3.1182941,3347.4,3347.3,0.05242536]
[1722335507814,3.1182941,3347.4,3346.9,2.98779]
[1722335507967,3.1182941,3347.4,3347.3,0.05242536]
[1722335508170,3.1182941,3347.4,3346.9,2.98777]
[1722335508503,0.1309041,3347.4,3346.9,2.98777]
[1722335508702,0.1309041,3347.4,3347.0,3.04012536]
[1722335509104,0.1309041,3347.4,3347.1,2.98765]
[1722335509312,0.1309041,3347.4,3347.1,5.97524]
[1722335509513,0.1309041,3347.4,3347.2,3.03998536]
[1722335510016,0.1309041,3347.4,3347.2,0.05242536]
[1722335510321,0.1309041,3347.4,3346.7,5.98801]
[1722335510322,2.4231,3347.3,3346.7,5.98801]
[1722335510618,2.4231,3347.3,3346.7,3.0]
[1722335511515,2.4231,3347.3,3346.7,5.98794]
[1722335511516,5.41059,3347.3,3346.7,5.98794]
[1722335511677,5.41059,3347.3,3346.8,2.98792]
[1722335511880,2.98758,3347.2,3346.7,3.0]
[1722335512080,2.4231,3347.3,3346.7,3.0]
[1722335512385,2.98814,3346.6,3346.1,2.98849]
[1722335512583,2.4759,3346.7,3345.6,5.38928]
[1722335512584,5.46392,3346.7,3346.2,2.98846]
[1722335512781,5.46392,3346.7,3346.3,35.0]
[1722335513994,2.4759,3346.7,3346.4,2.98825]
[1722335514402,10.83346586,3347.1,3346.4,2.98825]
[1722335514707,3.53781,3347.0,3346.5,2.98817]
[1722335515288,3.53781,3347.0,3346.6,2.98807]
[1722335515289,0.55,3347.0,3346.6,2.98807]
[1722335515517,10.83346586,3347.1,3346.6,2.98806]
[1722335515731,5.49745996,3347.4,3346.8,2.98787]
[1722335515900,5.49745996,3347.4,3347.0,2.9877]
[1722335515901,0.55,3347.3,3347.0,2.9877]
[1722335516097,0.1309041,3347.4,3347.0,2.9877]
[1722335516301,0.1309041,3347.4,3347.1,2.9876]
[1722335517917,0.1309041,3347.4,3347.3,2.98748]
[1722335518131,0.1309041,3347.4,3347.1,2.9876]
[1722335518508,0.1309041,3347.4,3347.0,2.98774]
[1722335519030,0.1309041,3347.4,3346.9,35.0]
[1722335519031,2.9875,3347.3,3346.9,37.98783]
[1722335519340,2.9875,3347.3,3346.9,35.0]
[1722335520118,2.9875,3347.3,3346.8,2.98792]
[1722335520485,2.98767,3347.1,3346.6,5.9761]
[1722335520656,2.98767,3347.1,3346.7,3.0]
[1722335520852,2.98788,3346.9,3346.2,2.98839]
[1722335521011,2.98793,3346.8,3346.3,2.98835]
[1722335521360,2.98793,3346.8,3346.1,2.9885]
[1722335521361,2.98808,3346.7,3346.1,2.9885]
[1722335521507,2.9878,3347.0,3345.6,2.772]
[1722335521715,2.9878,3347.0,3346.4,2.98823]
[1722335521909,1.96563559,3346.9,3346.4,2.98823]
[1722335522114,2.9878,3347.0,3346.5,0.05295126]
[1722335522352,2.98804,3346.7,3346.1,2.98851]
[1722335522567,2.98804,3346.7,3346.6,0.05295126]
[1722335522717,2.98804,3346.7,3346.2,3.0]
[1722335522920,2.98804,3346.7,3346.6,0.05295126]
[1722335523154,2.98793,3346.8,3346.2,5.98841]
[1722335523317,2.98793,3346.8,3346.6,0.05295126]
[1722335523518,2.98793,3346.8,3346.3,2.98835]
[1722335523713,2.98793,3346.8,3346.7,0.05295126]
[1722335523961,2.98793,3346.8,3346.7,0.33094048]
[1722335524119,5.97591,3346.8,3346.7,0.38389174]
[1722335524779,9.60645659,3346.8,3346.7,0.38389174]
[1722335525649,9.60645659,3346.8,3346.7,0.33094048]
[1722335525848,9.60645659,3346.8,3346.0,3.0]
[1722335525849,2.98821,3346.5,3346.0,3.0]
[1722335526151,2.98821,3346.5,3346.1,0.05295126]
[1722335526458,2.98811,3346.6,3346.1,3.04145126]
[1722335527394,2.4413,3346.8,3346.3,2.98837]
[1722335527545,5.42923,3346.8,3346.3,2.98837]
[1722335527746,5.42923,3346.8,3346.4,0.05295126]
[1722335528050,2.98806,3346.7,3346.1,5.97699]
[1722335528242,2.98806,3346.7,3346.5,0.05295126]
[1722335528472,2.98806,3346.7,3346.2,35.0]
[1722335528673,2.98806,3346.7,3346.6,0.05295126]
[1722335528872,2.98812,3346.6,3346.2,35.0]
[1722335529569,2.98808,3346.7,3346.2,35.0]
[1722335529770,2.98807,3346.7,3346.2,35.0]
[1722335529975,2.98824,3346.5,3346.2,35.0]
[1722335530374,5.42927,3346.8,3346.3,2.98836]
[1722335530579,2.9879,3346.9,3346.3,2.98836]
[1722335530580,2.98783,3346.9,3346.3,2.98836]
[1722335530774,11.19607586,3347.1,3346.3,0.05976107]
[1722335530775,8.20835586,3347.1,3346.3,0.05976107]
[1722335530978,5.36655586,3347.1,3346.9,2.9878]
[1722335531211,0.1309041,3347.4,3347.0,2.98774]
[1722335531414,0.1309041,3347.4,3347.0,2.9877]
[1722335531624,0.1309041,3347.4,3347.1,0.05974943]
[1722335531829,0.1309041,3347.4,3347.2,2.98756]
[1722335532540,0.1309041,3347.4,3347.3,3.04722625]
[1722335532917,0.1309041,3347.4,3347.3,6.03470625]
[1722335533422,0.1309041,3347.4,3347.3,5.97496]
[1722335533587,0.1309041,3347.4,3347.3,2.98748]
[1722335534627,0.1309041,3347.4,3347.3,3.04722252]
[1722335534924,0.1309041,3347.4,3347.3,5.97496]
[1722335535131,0.1309041,3347.4,3347.3,2.98748]
[1722335535732,0.1309041,3347.4,3347.3,5.97496]
[1722335536309,0.1309041,3347.4,3347.3,13.67276]
[1722335536808,0.1309041,3347.4,3347.3,51.66024]
[1722335540241,0.1309041,3347.4,3347.3,51.7133049]
[1722335542145,0.1309041,3347.4,3347.3,44.0280249]
[1722335542365,0.1309041,3347.4,3347.3,6.0280249]
[1722335543904,0.1309041,3347.4,3347.3,0.0530649]
[1722335544103,0.1309041,3347.4,3347.2,2.98751]
[1722335544403,0.1309041,3347.4,3346.9,38.0]
[1722335544404,0.1309041,3347.4,3347.3,6.02564596]
[1722335546352,0.1309041,3347.4,3347.3,3.03816596]
[1722335546872,0.1309041,3347.4,3347.3,0.05068596]
[1722335547054,3.1182941,3347.4,3347.3,0.05068596]
[1722335547254,0.97680751,3347.4,3346.8,0.33093059]
[1722335547575,2.9877,3347.1,3346.8,0.33093059]
[1722335548077,6.52511,3347.3,3346.8,0.33093059]
[1722335548233,2.98761,3347.2,3346.8,0.33093059]
[1722335548560,3.53755,3347.3,3346.8,0.33093059]
[1722335548915,3.53755,3347.3,3346.8,3.31884059]
[1722335549120,3.53755,3347.3,3346.8,0.33093059]
[1722335549376,2.98776,3347.0,3346.8,0.33093059]
[1722335549683,0.55,3347.3,3346.8,0.33093059]
[1722335549684,3.53753,3347.3,3346.8,0.33093059]
[1722335549849,5.97543,3347.1,3346.8,0.33093059]
[1722335550055,2.98771,3347.1,3346.8,0.33093059]
[1722335550374,2.98776,3347.0,3346.8,0.33093059]
[1722335550752,5.97566,3346.9,3346.8,0.33093059]
[1722335550947,8.95696904,3346.9,3346.8,0.33093059]
[1722335551148,9.50696904,3346.9,3346.8,0.33093059]
[1722335551577,12.49479904,3346.9,3346.8,0.33093059]
[1722335551883,12.85220277,3346.9,3346.8,0.33093059]
[1722335552062,15.84003277,3346.9,3346.8,0.33093059]
[1722335552260,17.71685851,3346.9,3346.8,0.33093059]
[1722335552437,15.85220277,3346.9,3346.8,0.33093059]
[1722335552632,20.71668323,3346.9,3346.8,0.33093059]
[1722335552883,20.71668323,3346.9,3346.8,0.01098675]
[1722335552884,18.84003277,3346.9,3346.8,0.01098675]
[1722335554241,18.84003277,3346.9,3346.8,6.75e-06]
[1722335554485,21.82786277,3346.9,3346.8,6.75e-06]
[1722335554869,24.0178121,3346.9,3346.8,6.75e-06]
[1722335555915,2.98907,3345.6,3345.0,2.98953]
[1722335556103,2.98906,3345.6,3345.0,2.98953]
[1722335556304,5.97812,3345.6,3345.1,0.05187271]
[1722335556823,2.98909,3345.5,3345.1,0.05187271]
[1722335557185,2.98906,3345.6,3345.1,0.05187271]
[1722335557386,5.36655586,3346.0,3344.9,35.0]
[1722335557387,2.98885,3345.8,3344.9,35.0]
[1722335557593,2.9894,3345.2,3344.9,35.0]
[1722335557907,4.06270059,3345.8,3344.3,2.3508]
[1722335557908,5.35892,3345.7,3344.3,2.3508]
[1722335558228,5.97957,3344.8,3344.4,35.0]
[1722335558514,2.98978,3344.8,3344.4,35.0]
[1722335558675,5.97956,3344.8,3344.4,35.0]
[1722335558871,2.98978,3344.8,3344.4,35.0]
[1722335559097,2.98969,3344.9,3344.4,35.0]
[1722335559274,2.98969,3344.9,3344.4,37.99006]
[1722335559473,2.98953,3345.0,3344.4,35.0]
[1722335559880,2.98967,3344.9,3344.4,35.0]
[1722335560515,2.98976,3344.8,3344.4,35.0]
[1722335561073,2.9898,3344.7,3344.4,35.0]
[1722335561277,2.98994,3344.6,3344.4,35.0]
[1722335561590,2.99007,3344.4,3343.9,2.2996]
[1722335561989,2.99007,3344.4,3344.0,35.0]
[1722335562427,2.9899,3344.6,3344.0,37.99042]
[1722335563419,2.98998,3344.5,3344.0,35.0]
[1722335565206,7.74675586,3344.9,3344.0,35.0]
[1722335565207,2.98977,3344.8,3344.0,35.0]
[1722335565378,2.98994,3344.6,3344.0,37.9904]
[1722335565924,2.98998,3344.5,3344.0,35.0]
[1722335566918,2.99008,3344.4,3344.0,35.0]
[1722335567114,7.74675586,3344.9,3344.0,35.0]
[1722335567317,2.99012,3344.4,3344.0,35.0]